bitfinex/quotes_ETHUSD_20250523
["timestamp","ask_amount","ask_price","bid_price","bid_amount"]
[1747967406204,3.67701132,2719.6,2719.5,0.30696179]
[1747967406410,4.41240092,2719.6,2719.5,0.30696179]
[1747967407236,6.07070092,2719.6,2719.5,0.30696179]
[1747967407535,3.67579489,2720.5,2719.5,0.30696179]
[1747967407747,5.33404528,2720.6,2719.5,0.30696179]
[1747967408041,3.67621672,2720.2,2719.6,11.71372876]
[1747967408244,1.6583,2720.6,2719.7,0.30693922]
[1747967408458,3.67660575,2719.9,2719.8,19.33]
[1747967408599,0.23953919,2720.5,2719.2,1.5203]
[1747967408600,3.67620027,2720.2,2719.2,1.5203]
[1747967408804,3.67701132,2719.6,2719.5,19.33]
[1747967409014,4.41240106,2719.6,2719.5,19.33]
[1747967409214,3.67688603,2719.7,2719.5,19.33]
[1747967409215,3.67692564,2719.7,2719.5,19.33]
[1747967409451,3.676948,2719.7,2719.5,19.33]
[1747967409601,3.67656702,2720.0,2719.5,20.8503]
[1747967409911,3.67664649,2719.9,2719.5,20.8503]
[1747967410110,3.67593001,2720.4,2719.5,20.8503]
[1747967410336,3.67683513,2719.8,2719.5,20.8503]
[1747967411161,1.89553919,2720.5,2719.5,20.8503]
[1747967411341,3.67680749,2719.8,2719.5,20.8503]
[1747967411700,3.67701132,2719.6,2719.5,20.8503]
[1747967411848,0.73539127,2719.6,2719.5,19.33]
[1747967412007,5.45204425,2720.5,2719.5,19.33]
[1747967412208,3.67692457,2719.7,2719.5,19.33]
[1747967412529,3.67755222,2719.2,2719.1,1.5203]
[1747967412730,1.2870919,2720.7,2719.1,31.8683]
[1747967412731,1.5647,2720.6,2719.1,31.8683]
[1747967412943,1.5847,2720.9,2719.4,5.19752519]
[1747967413131,3.67613695,2720.3,2719.5,30.348]
[1747967413317,0.3676137,2720.3,2719.5,30.348]
[1747967413515,1.5847,2720.9,2719.5,30.348]
[1747967413747,3.67538959,2720.8,2719.5,30.348]
[1747967413941,3.67582173,2720.5,2719.6,3.67691091]
[1747967414149,0.73514852,2720.4,2719.5,30.348]
[1747967414458,3.67565978,2720.6,2719.8,3.67671406]
[1747967414657,3.67589487,2720.5,2719.9,11.019]
[1747967414952,3.67686951,2719.8,2719.4,1.5203]
[1747967415156,0.36768695,2719.7,2719.5,19.328]
[1747967415649,0.36768695,2719.7,2719.0,0.42325841]
[1747967415956,3.67768747,2719.1,2719.0,0.42325841]
[1747967416421,5.84098747,2719.1,2719.0,0.42325841]
[1747967416631,5.79095799,2718.9,2718.8,0.55883537]
[1747967416821,5.24095799,2718.9,2718.8,0.55883537]
[1747967417054,1.563,2718.9,2718.2,3.67890515]
[1747967417260,3.67838167,2718.6,2718.2,1.5203]
[1747967417418,1.563,2718.9,2718.1,0.02]
[1747967417749,1.563,2719.3,2718.3,3.67874857]
[1747967417921,3.67755222,2719.2,2718.4,11.019]
[1747967418257,4.20174598,2719.1,2718.5,19.329]
[1747967418441,3.6779758,2718.9,2718.5,19.329]
[1747967418768,3.6778882,2719.0,2718.6,0.00423835]
[1747967419254,1.563,2719.3,2718.6,0.00423835]
[1747967419430,3.67784654,2719.0,2718.6,0.00423835]
[1747967419610,3.67822856,2718.7,2718.6,0.00423835]
[1747967419814,3.67795799,2718.9,2718.6,0.00423835]
[1747967420012,1.563,2719.3,2718.6,0.00423835]
[1747967420013,1.563,2719.8,2718.9,3.67792792]
[1747967420253,3.67778437,2719.1,2718.7,1.5203]
[1747967420477,1.563,2719.8,2718.8,0.00233464]
[1747967420953,1.563,2719.8,2718.7,1.5203]
[1747967420954,3.67662758,2719.9,2718.9,19.54686449]
[1747967421250,3.67633476,2720.2,2719.5,5.19741112]
[1747967421451,3.67633476,2720.2,2719.6,34.02789812]
[1747967421624,1.563,2720.7,2719.6,30.351]
[1747967421826,3.67593847,2720.4,2719.8,3.67674093]
[1747967422348,3.67670178,2719.9,2719.6,30.351]
[1747967422516,3.67641603,2720.1,2719.6,30.351]
[1747967422712,3.67613953,2720.3,2719.7,3.67679809]
[1747967422917,3.67622393,2720.2,2719.7,3.67679809]
[1747967423116,3.67625629,2720.2,2719.6,30.351]
[1747967423318,3.67600779,2720.4,2719.8,3.67666031]
[1747967423643,1.563,2720.7,2719.7,3.67681725]
[1747967423843,3.67615252,2720.3,2719.7,3.67681725]
[1747967424031,3.67656539,2720.0,2719.6,30.351]
[1747967424445,3.67687612,2719.7,2719.6,19.331]
[1747967424649,4.19955404,2720.6,2719.6,19.331]
[1747967424951,3.67633643,2720.1,2719.6,23.00798376]
[1747967425118,3.67633643,2720.1,2719.6,19.331]
[1747967425617,3.67633643,2720.1,2719.6,23.00797994]
[1747967425815,3.67590078,2720.5,2719.8,3.67666439]
[1747967426014,3.67606513,2720.3,2719.8,3.67670954]
[1747967426250,3.67606513,2720.3,2719.6,19.331]
[1747967426251,3.67591107,2720.5,2719.9,5.53510673]
[1747967426470,0.02,2720.9,2720.0,3.67646611]
[1747967426791,3.67594712,2720.4,2719.9,5.53511012]
[1747967427065,3.69528799,2720.9,2719.9,1.85856087]
[1747967427066,3.67588626,2720.5,2719.9,1.85856087]
[1747967427230,3.67593301,2720.4,2719.9,1.85856087]
[1747967427419,3.67581713,2720.5,2719.9,1.85856087]
[1747967427615,3.69530117,2720.9,2719.9,1.85856087]
[1747967427616,0.36953012,2720.8,2719.9,1.85856087]
[1747967427853,3.67647058,2720.0,2719.9,0.33826087]
[1747967428368,3.67777617,2719.1,2719.0,19.327]
[1747967428518,1.5307,2720.1,2718.9,19.327]
[1747967428718,3.67782272,2719.0,2718.9,19.327]
[1747967429563,3.67836386,2718.6,2718.1,19.346]
[1747967429814,3.67890515,2718.2,2718.1,19.346]
[1747967430120,3.67890515,2718.2,2718.1,0.02]
[1747967430584,4.41467392,2718.2,2718.1,0.02]
[1747967430744,3.67890515,2718.2,2718.1,0.02]
[1747967430911,1.6164,2718.5,2718.1,0.02]
[1747967432626,1.5552,2719.1,2718.1,0.02]
[1747967433541,0.55,2719.0,2718.1,0.02]
[1747967433734,0.21052,2718.9,2718.1,0.02]
[1747967434257,0.21052,2718.9,2718.1,8.02]
[1747967434437,1.5552,2719.1,2718.4,3.67860458]
[1747967434641,1.5552,2719.1,2718.5,19.172]
[1747967435154,1.6304,2719.6,2718.5,22.85048979]
[1747967435355,1.6304,2719.6,2718.6,19.021]
[1747967435556,1.6304,2719.6,2718.8,3.6779735]
[1747967435758,1.6304,2719.6,2718.9,3.67788692]
[1747967436057,1.5892,2720.0,2719.0,23.87]
[1747967436258,1.5892,2720.0,2719.1,38.193]
[1747967436665,5.2656976,2720.0,2719.2,3.67746586]
[1747967436817,4.57088594,2719.9,2719.1,41.87064067]
[1747967437021,3.67687791,2719.7,2719.1,38.193]
[1747967437262,3.67702381,2719.6,2719.1,38.193]
[1747967437555,3.67678978,2719.8,2719.1,38.193]
[1747967437760,4.66046091,2719.8,2719.1,38.193]
[1747967438146,4.66046091,2719.8,2719.1,41.87064857]
[1747967438458,1.658,2720.4,2719.1,30.193]
[1747967438755,5.33344242,2720.8,2719.3,8.0]
[1747967438960,0.02,2720.9,2719.8,3.67674093]
[1747967439252,0.02,2720.9,2720.2,3.67610848]
[1747967439463,0.38951519,2720.9,2720.3,3.67601908]
[1747967439646,0.02,2720.9,2720.2,8.0]
[1747967439851,0.02,2720.9,2720.5,3.6756713]
[1747967440056,0.02,2720.9,2720.6,19.171]
[1747967440226,0.02,2720.9,2720.2,8.0]
[1747967440419,0.02,2720.9,2720.4,8.0]
[1747967440638,0.02,2720.9,2720.4,11.67584836]
[1747967441159,0.02,2720.9,2720.5,0.03675362]
[1747967441334,0.02,2720.9,2720.4,8.0]
[1747967441536,0.02,2720.9,2720.8,11.67538959]
[1747967442662,0.02,2720.9,2720.8,12.01331989]
[1747967445139,0.02,2720.9,2720.8,42.19231989]
[1747967445527,0.02,2720.9,2720.8,38.5169303]
[1747967445723,0.02,2720.9,2720.8,42.19231989]
[1747967445949,0.02,2720.9,2720.8,30.5169303]
[1747967446157,0.02,2720.9,2720.8,38.5169303]
[1747967446365,0.02,2720.9,2720.8,34.19231989]
[1747967446562,0.02,2720.9,2720.8,0.3379303]
[1747967446743,0.38950277,2720.9,2720.8,19.4979303]
[1747967447124,0.02,2720.9,2720.8,23.17331989]
[1747967447550,0.02,2720.9,2720.8,19.4979303]
[1747967448071,0.02,2720.9,2720.8,19.16]
[1747967448072,3.69525451,2720.9,2720.8,19.16]
[1747967448259,4.43229705,2720.9,2720.8,19.16]
[1747967448434,0.75704254,2720.9,2720.8,19.16]
[1747967448633,4.43229705,2720.9,2720.6,19.16]
[1747967448833,0.75704254,2720.9,2720.6,19.16]
[1747967449164,0.02,2720.9,2720.6,19.16]
[1747967449744,0.02,2720.9,2720.7,11.67551936]
[1747967449938,0.02,2720.9,2720.8,3.67538959]
[1747967450742,0.02,2720.9,2720.8,4.01193992]
[1747967451841,0.02,2720.9,2720.8,26.51193992]
[1747967452029,0.02,2720.9,2720.8,56.68593992]
[1747967452428,0.02,2720.9,2720.8,26.51193992]
[1747967452634,0.02,2721.9,2721.8,3.67403923]
[1747967452833,0.02,2722.9,2721.9,8.0]
[1747967453167,0.02,2722.9,2722.1,8.0]
[1747967453371,0.02,2722.9,2722.4,3.6732295]
[1747967453542,0.02,2722.9,2722.7,8.0]
[1747967453742,0.02,2722.9,2722.6,8.0]
[1747967453992,0.02,2722.9,2722.8,11.67268987]
[1747967455053,0.02,2722.9,2722.8,41.84368987]
[1747967455261,0.02,2722.9,2722.8,57.70268987]
[1747967455473,0.02,2722.9,2722.8,58.34889876]
[1747967455775,0.02,2722.9,2722.8,57.69968987]
[1747967456475,0.02,2722.9,2722.8,58.03322754]
[1747967456672,0.02,2723.9,2723.8,3.6713415]
[1747967456970,0.02,2723.9,2723.8,43.006]
[1747967457931,0.02,2723.9,2723.8,22.04808398]
[1747967458254,0.02,2723.9,2723.8,15.854]
[1747967459252,0.38910487,2723.9,2723.8,15.854]
[1747967459644,0.02,2723.9,2723.8,19.5253415]
[1747967460169,0.02,2723.9,2723.8,27.5253415]
[1747967461534,0.02,2723.9,2723.8,28.17155039]
[1747967461747,0.02,2723.9,2723.8,28.75644952]
[1747967461947,0.02,2723.9,2723.8,28.17155039]
[1747967462145,0.02,2723.9,2723.8,42.997]
[1747967462379,1.5272,2724.4,2723.9,8.0]
[1747967462585,1.5272,2724.4,2724.0,3.67107195]
[1747967462736,1.5272,2725.1,2724.2,3.67073068]
[1747967462937,3.66992597,2724.9,2724.1,3.67082493]
[1747967463137,0.73397425,2724.8,2723.9,8.0]
[1747967463342,1.5272,2725.1,2724.2,3.67071321]
[1747967463664,3.66985944,2724.9,2724.1,11.6709313]
[1747967463994,3.66986371,2724.9,2724.2,3.67079936]
[1747967464298,0.88667032,2724.9,2723.9,8.0]
[1747967464454,1.5272,2725.1,2724.6,8.0]
[1747967464774,1.5272,2725.1,2724.7,19.001]
[1747967465929,1.5257,2725.8,2725.1,3.66953247]
[1747967466136,3.66893028,2725.6,2724.8,23.844]
[1747967466453,5.19439723,2725.8,2725.2,8.0]
[1747967466799,0.52143972,2725.7,2725.3,19.001]
[1747967467261,1.525,2724.9,2724.1,19.001]
[1747967467469,1.525,2724.1,2723.5,19.001]
[1747967467650,3.67116837,2724.0,2723.5,19.001]
[1747967467851,1.525,2724.1,2723.6,3.67153738]
[1747967468063,1.525,2724.1,2723.5,19.001]
[1747967468276,3.67116425,2724.0,2723.5,19.001]
[1747967468482,3.67116425,2724.0,2723.1,15.864]
[1747967468483,0.54931151,2724.0,2723.1,15.864]
[1747967468780,1.6227,2723.8,2723.1,15.864]
[1747967468939,5.29485041,2723.2,2723.1,0.02]
[1747967469437,5.84485041,2723.2,2723.1,0.02]
[1747967469636,2.1727,2723.2,2722.3,18.997]
[1747967469891,1.5282,2722.4,2722.3,18.997]
[1747967470034,3.67251483,2723.0,2722.4,8.0]
[1747967470035,3.67268987,2722.8,2722.4,8.0]
[1747967470373,3.67268987,2722.8,2722.5,0.30662354]
[1747967470574,5.22235967,2722.6,2722.5,0.30662354]
[1747967471039,5.22235967,2722.6,2722.1,0.02]
[1747967471040,3.67349937,2722.2,2722.1,0.02]
[1747967471475,5.19189937,2722.2,2722.1,0.02]
[1747967472391,3.6745255,2721.5,2721.3,19.55441391]
[1747967472538,3.67379169,2722.0,2721.3,19.0]
[1747967472742,0.51918994,2722.1,2721.4,8.0]
[1747967472941,0.57111796,2722.0,2721.3,19.0]
[1747967473278,3.67484933,2721.2,2721.1,0.02]
[1747967473444,5.30474933,2721.2,2721.1,0.3267813]
[1747967473640,1.6299,2721.2,2721.1,0.3267813]
[1747967473962,3.67484933,2721.2,2721.1,0.3267813]
[1747967474276,1.5305,2721.2,2721.1,0.3267813]
[1747967474578,3.67445309,2721.5,2721.1,0.02]
[1747967474775,3.67484933,2721.2,2721.1,0.02]
[1747967475076,1.5305,2721.4,2721.1,0.02]
[1747967475252,5.20508291,2721.4,2721.1,0.02]
[1747967475447,3.67472421,2721.3,2721.1,0.02]
[1747967475683,3.67484933,2721.2,2721.1,0.02]
[1747967476178,0.49362138,2721.3,2721.1,0.02]
[1747967476363,1.6625,2721.8,2721.1,8.02]
[1747967476547,3.67439628,2721.6,2721.1,8.02]
[1747967476748,3.67484933,2721.2,2721.1,0.02]
[1747967477152,5.84184933,2721.2,2721.1,0.02]
[1747967477351,5.29252468,2720.7,2720.6,0.41922245]
[1747967477676,5.29252468,2720.7,2720.1,0.52]
[1747967477677,5.74160027,2720.2,2720.1,0.52]
[1747967477837,5.19227612,2719.7,2719.6,1.13041108]
[1747967478478,3.67504833,2721.1,2719.2,0.0367742]
[1747967478679,1.16514001,2723.5,2719.1,19.028]
[1747967478680,1.5251,2721.6,2719.6,8.0]
[1747967478866,1.5251,2721.6,2720.0,0.3666]
[1747967479067,1.5251,2721.6,2720.1,38.015]
[1747967479399,1.5251,2721.6,2720.2,0.03675555]
[1747967479677,0.30853368,2721.5,2720.1,11.67625453]
[1747967479839,0.30853368,2721.5,2720.4,8.0]
[1747967480148,3.67548931,2720.8,2720.6,8.0]
[1747967480339,0.30853368,2720.7,2720.6,8.0]
[1747967480539,0.55,2720.4,2719.1,0.02]
[1747967480761,3.67755222,2719.2,2719.1,0.02]
[1747967480960,1.5345,2719.9,2719.1,0.02]
[1747967481161,3.67755222,2719.2,2719.1,0.02]
[1747967481396,1.5345,2719.9,2719.1,0.02]
[1747967481903,3.67703841,2719.6,2719.1,0.02]
[1747967482200,3.67718466,2719.5,2719.2,19.012]
[1747967482357,3.67706674,2719.6,2719.2,19.012]
[1747967482977,1.5345,2719.9,2719.2,19.012]
[1747967483162,1.5488,2720.6,2719.6,8.0]
[1747967483369,3.67674093,2719.8,2719.7,19.018]
[1747967483572,3.67674093,2719.8,2719.4,15.858]
[1747967483573,3.67714653,2719.5,2719.4,23.858]
[1747967483901,3.67728175,2719.4,2719.3,27.018]
[1747967484103,3.67714653,2719.5,2719.1,0.02]
[1747967484104,3.67755222,2719.2,2719.1,0.02]
[1747967484600,3.67732094,2719.4,2719.1,0.02]
[1747967484899,3.67746095,2719.3,2719.1,0.02]
[1747967485107,3.6770319,2719.6,2719.1,0.02]
[1747967485308,1.5488,2719.7,2719.1,0.02]
[1747967485526,3.67744141,2719.3,2719.1,0.02]
[1747967485667,1.5488,2719.7,2719.1,0.02]
[1747967486077,3.6772204,2719.5,2719.1,0.02]
[1747967486280,3.67730279,2719.4,2719.1,8.02]
[1747967486513,3.67720028,2719.5,2719.1,8.02]
[1747967486683,1.5758,2719.7,2719.2,19.022]
[1747967486883,3.67741698,2719.3,2719.2,27.022]
[1747967487590,3.67741698,2719.3,2719.2,8.0]
[1747967488197,1.5758,2719.7,2719.2,8.0]
[1747967488397,3.67723181,2719.5,2719.2,8.0]
[1747967488610,3.67741698,2719.3,2719.2,8.0]
[1747967488775,3.67741698,2719.3,2719.1,0.02]
[1747967488776,3.67755222,2719.2,2719.1,0.02]
[1747967488983,5.79715222,2719.2,2719.1,0.02]
[1747967489517,5.24715222,2719.2,2719.1,0.02]
[1747967490517,3.67755222,2719.2,2719.1,0.02]
[1747967491310,1.5009,2719.6,2719.1,0.02]
[1747967491501,3.67522995,2721.0,2719.1,0.02]
[1747967491502,3.67735948,2719.4,2719.3,8.0]
[1747967491695,5.17759707,2719.9,2719.3,8.0]
[1747967491921,1.5009,2720.2,2719.5,8.0]
[1747967492215,1.5009,2720.2,2719.7,8.0]
[1747967492522,3.67593001,2720.4,2719.7,8.0]
[1747967492722,3.67627747,2720.2,2719.8,0.00283301]
[1747967493019,3.67632064,2720.2,2719.8,0.00283301]
[1747967493224,1.5009,2720.5,2719.8,0.00283301]
[1747967493521,3.67660575,2719.9,2719.8,0.00283301]
[1747967493729,3.67660575,2719.9,2719.8,26.92083301]
[1747967494223,3.67660575,2719.9,2719.8,0.00283301]
[1747967494805,5.19230575,2719.9,2719.8,0.00283301]
[1747967495138,5.74230575,2719.9,2719.8,0.00283301]
[1747967495306,5.74230575,2719.9,2719.1,0.02]
[1747967495307,3.67755222,2719.2,2719.1,0.02]
[1747967498285,3.67668646,2719.9,2719.2,0.3666]
[1747967498481,3.67523225,2721.0,2719.2,0.40337219]
[1747967498823,4.04511248,2721.8,2719.8,0.3666]
[1747967499122,0.37105,2721.8,2720.0,8.3666]
[1747967499336,3.67556132,2720.7,2720.2,8.0]
[1747967499490,3.6749833,2721.2,2720.3,0.3666]
[1747967499686,0.55852439,2721.7,2720.3,0.3666]
[1747967500012,0.37105,2721.8,2720.4,0.03675156]
[1747967500013,3.67516851,2721.0,2720.4,0.03675156]
[1747967500207,3.67407491,2721.8,2720.3,0.3666]
[1747967500417,3.67524948,2721.0,2720.4,0.03674969]
[1747967500619,3.67346409,2722.3,2720.3,0.3666]
[1747967500924,3.67637687,2720.1,2720.0,8.3666]
[1747967501234,3.67647058,2720.0,2719.9,0.3363547]
[1747967501409,4.41163568,2720.1,2719.4,0.3666]
[1747967501410,3.67702232,2719.6,2719.4,0.3666]
[1747967501586,3.67701132,2719.6,2719.4,8.3666]
[1747967501785,3.67606513,2720.3,2719.4,8.3666]
[1747967501983,3.6766747,2719.9,2719.4,8.3666]
[1747967502187,1.5447,2720.8,2719.4,8.3666]
[1747967502489,3.67669673,2719.9,2719.6,8.0]
[1747967502688,3.67640478,2720.1,2719.6,8.0]
[1747967503024,3.67701132,2719.6,2719.5,0.33771725]
[1747967503439,3.67701132,2719.6,2719.5,0.34064929]
[1747967504331,3.67701132,2719.6,2719.5,0.00293204]
[1747967505957,4.78007526,2719.6,2719.5,0.00293204]
[1747967506458,3.67741698,2719.3,2719.2,0.33886305]
[1747967506604,3.6773501,2719.4,2719.2,8.33886305]
[1747967506804,3.67674093,2719.8,2719.2,8.70546305]
[1747967507148,3.67685412,2719.8,2719.2,8.70546305]
[1747967507306,3.67741698,2719.3,2719.2,8.33886305]
[1747967507506,3.67741698,2719.3,2719.2,0.33886305]
[1747967507799,3.67741698,2719.3,2719.2,19.25686305]
[1747967508748,3.67741698,2719.3,2719.2,19.26110046]
[1747967510940,3.67741698,2719.3,2719.2,0.34310046]
[1747967511122,4.41288819,2719.3,2719.2,0.34310046]
[1747967511434,6.49918819,2719.3,2719.2,0.34310046]
[1747967511759,6.49918819,2719.3,2719.2,0.33886305]
[1747967512123,6.49918819,2719.3,2718.2,0.56486972]
[1747967512124,3.67876981,2718.3,2718.2,0.56486972]
[1747967512343,5.21506981,2718.3,2718.2,0.56486972]
[1747967513070,5.21601739,2717.6,2717.5,1.13041108]
[1747967513211,5.21601739,2717.6,2715.4,4.8762931]
[1747967513212,3.68025909,2717.2,2716.2,0.9515]
[1747967513558,3.68025909,2717.2,2716.7,18.921]
[1747967513755,3.68025909,2717.2,2716.8,8.0]
[1747967513923,3.68025909,2717.2,2716.7,18.921]
[1747967514748,4.23025909,2717.2,2716.8,18.921]
[1747967514953,3.68025909,2717.2,2716.8,18.921]
[1747967515161,3.68025909,2717.2,2716.9,8.0]
[1747967516459,3.68025909,2717.2,2716.8,18.921]
[1747967517223,4.23025909,2717.2,2716.5,18.926]
[1747967517549,3.68025909,2717.2,2716.6,8.0]
[1747967518116,3.68025909,2717.2,2716.5,8.0]
[1747967518340,4.96629795,2717.2,2716.7,18.926]
[1747967518542,3.68025909,2717.2,2716.7,18.926]
[1747967519086,5.76507756,2716.2,2715.4,1.41075014]
[1747967519942,5.76507756,2716.2,2714.9,18.929]
[1747967520149,5.76507756,2716.2,2715.1,8.02]
[1747967520360,5.76507756,2716.2,2715.5,18.929]
[1747967520780,5.76507756,2716.2,2715.2,18.929]
[1747967520956,3.68126122,2716.5,2715.2,18.929]
[1747967520957,3.6828343,2715.3,2715.2,18.929]
[1747967521156,3.6828343,2715.3,2715.1,0.02]
[1747967521157,3.68296994,2715.2,2715.1,0.02]
[1747967522471,3.68296994,2715.2,2715.1,18.954]
[1747967522871,5.22210094,2716.8,2715.2,0.9515]
[1747967523048,3.68199549,2716.0,2715.3,0.0368218]
[1747967523241,1.5413,2716.8,2715.4,0.9515]
[1747967523446,3.68076556,2716.9,2715.7,0.9515]
[1747967523671,3.68180398,2716.1,2715.9,8.0]
[1747967523876,3.98857908,2716.1,2715.9,8.0]
[1747967524044,3.68188512,2716.0,2715.9,8.0]
[1747967524711,3.68215627,2715.8,2715.7,0.9515]
[1747967524935,3.68215627,2715.8,2715.7,8.0]
[1747967525143,3.68215627,2715.8,2715.7,26.85]
[1747967525579,0.3067751,2716.1,2715.8,8.0]
[1747967525780,3.68202069,2715.9,2715.8,8.0]
[1747967526181,3.68202069,2715.9,2715.8,37.878]
[1747967526929,3.68202069,2715.9,2715.8,26.85]
[1747967527094,0.3067751,2716.1,2715.9,8.0]
[1747967527299,0.3067751,2716.1,2716.0,30.8295]
[1747967527507,0.3067751,2716.1,2716.0,38.8295]
[1747967527881,3.98852466,2716.1,2716.0,8.0]
[1747967528995,3.98852466,2716.1,2716.0,1.57369542]
[1747967529198,3.68215627,2715.8,2715.7,0.9515]
[1747967529444,0.3067751,2716.1,2715.2,0.9515]
[1747967529586,3.68229629,2715.7,2715.4,11.03]
[1747967529944,3.68256306,2715.5,2715.4,11.03]
[1747967530290,0.3067751,2716.1,2715.2,0.9515]
[1747967530291,3.68275467,2715.4,2715.2,0.9515]
[1747967530482,3.68250158,2715.6,2715.3,29.882]
[1747967530685,0.3067751,2716.1,2715.3,29.882]
[1747967530925,3.68269868,2715.4,2715.3,29.882]
[1747967531105,3.68269868,2715.4,2715.3,37.882]
[1747967531292,3.68260981,2715.5,2715.3,8.0]
[1747967531493,3.68233813,2715.7,2715.4,29.884]
[1747967531821,3.98862897,2716.1,2715.4,30.72438993]
[1747967531822,3.68224035,2715.8,2715.4,30.72438993]
[1747967531994,3.68231024,2715.7,2715.4,18.854]
[1747967532201,3.68256306,2715.5,2715.4,18.854]
[1747967532398,0.3067751,2716.1,2715.4,29.885]
[1747967532603,3.68195004,2716.0,2715.5,0.03681907]
[1747967532803,3.68202335,2715.9,2715.4,29.885]
[1747967533185,0.3067751,2716.1,2715.4,8.0]
[1747967533402,0.3067751,2716.1,2715.2,8.9515]
[1747967533630,3.6820449,2715.9,2715.4,8.0]
[1747967533816,3.68267715,2715.5,2715.3,18.855]
[1747967534017,0.3067751,2716.1,2715.3,18.855]
[1747967534018,0.3067751,2716.1,2715.4,11.031]
[1747967534490,3.68252077,2715.6,2715.4,11.031]
[1747967534690,3.68256306,2715.5,2715.4,8.0]
[1747967534939,3.6828343,2715.3,2715.1,15.903]
[1747967535137,3.68296994,2715.2,2715.1,15.903]
[1747967535437,5.78550559,2715.1,2715.0,35.0]
[1747967535586,7.10063657,2715.1,2715.0,35.0]
[1747967535789,7.10063657,2715.1,2715.0,14.31333055]
[1747967535985,7.10063657,2715.1,2715.0,10.31343055]
[1747967536228,7.10063657,2715.1,2715.0,2.31363055]
[1747967536702,5.78550559,2715.1,2715.0,2.31363055]
[1747967538094,3.68310559,2715.1,2715.0,2.31363055]
[1747967538507,3.68310559,2715.1,2715.0,21.17363055]
[1747967540427,3.68310559,2715.1,2715.0,2.31363055]
[1747967541349,5.74000559,2715.1,2715.0,2.31363055]
[1747967541560,6.68230314,2715.1,2715.0,2.31363055]
[1747967543335,5.74000559,2715.1,2715.0,2.31363055]
[1747967544147,5.19000559,2715.1,2715.0,2.31363055]
[1747967544453,0.1,2715.5,2715.0,21.1801934]
[1747967544618,3.68310559,2715.1,2715.0,21.1801934]
[1747967545038,3.68269868,2715.4,2715.0,32.2161934]
[1747967545246,3.68310559,2715.1,2715.0,40.2161934]
[1747967545415,3.68310559,2715.1,2715.0,10.3161934]
[1747967545613,3.68310559,2715.1,2715.0,40.55546065]
[1747967546114,3.68310559,2715.1,2715.0,10.65546065]
[1747967546445,4.23310559,2715.1,2715.0,2.65546065]
[1747967546624,3.98988069,2715.1,2715.0,21.51946065]
[1747967547157,3.98988069,2715.1,2715.0,21.5168978]
[1747967547668,0.3067751,2715.1,2715.0,31.1327978]
[1747967547947,3.98988069,2715.1,2715.0,31.1327978]
[1747967548253,3.68304984,2715.2,2715.1,8.0]
[1747967548823,3.68296994,2715.2,2715.1,8.33926725]
[1747967549135,3.68296994,2715.2,2715.1,0.33926725]
[1747967549310,4.4195588,2715.2,2715.1,0.33926725]
[1747967549510,3.68296994,2715.2,2715.1,0.33926725]
[1747967551242,5.76906994,2715.2,2715.1,0.33926725]
[1747967552762,5.76906994,2715.2,2715.1,0.00192871]
[1747967554485,1.5083,2716.8,2715.2,11.42527453]
[1747967554655,1.5083,2716.8,2715.3,1.6209]
[1747967554656,3.68145732,2716.4,2715.3,1.6209]
[1747967554857,3.68256306,2715.5,2715.4,8.0]
[1747967555159,3.68243985,2715.6,2715.4,8.0]
[1747967555343,3.68256306,2715.5,2715.4,0.00192849]
[1747967555547,3.68256306,2715.5,2715.4,38.73882534]
[1747967555757,3.68256306,2715.5,2715.4,38.73689685]
[1747967557078,3.68241578,2715.7,2715.4,9.18002673]
[1747967557286,3.68202757,2715.9,2715.5,8.0]
[1747967557581,3.68256306,2715.5,2715.4,0.3396368]
[1747967558367,3.68256306,2715.5,2715.4,0.34133318]
[1747967558547,4.96906335,2715.5,2715.4,0.34133318]
[1747967558750,4.41906335,2715.5,2715.4,0.34133318]
[1747967559138,3.68256306,2715.5,2715.4,0.34133318]
[1747967560273,4.23256306,2715.5,2715.4,0.34133318]
[1747967560864,4.23256306,2715.5,2715.4,0.00169638]
[1747967561255,3.68256306,2715.5,2715.4,0.00169638]
[1747967561589,0.55,2715.7,2715.0,21.10663055]
[1747967561795,3.68310559,2715.1,2715.0,21.10663055]
[1747967562284,3.68310559,2715.1,2715.0,32.14263055]
[1747967562890,0.55,2715.7,2715.0,32.14263055]
[1747967563184,1.5046,2715.8,2715.1,8.0]
[1747967563414,3.68264245,2715.5,2715.2,1.6277]
[1747967563593,5.22751738,2716.2,2715.3,8.0]
[1747967563888,3.68190562,2716.0,2715.2,1.6277]
[1747967564189,4.20185899,2716.7,2715.3,3.6828343]
[1747967564190,5.22714461,2716.5,2715.3,3.6828343]
[1747967564365,3.68215077,2715.9,2715.3,3.68281327]
[1747967564698,3.68217459,2715.8,2715.6,0.42479782]
[1747967564893,3.68189215,2716.0,2715.7,47.3487]
[1747967565068,3.6816542,2716.2,2715.7,47.3487]
[1747967565274,3.68177743,2716.1,2715.8,8.0]
[1747967565485,1.5659,2716.9,2715.8,8.0]
[1747967565796,3.68161618,2716.2,2716.0,8.0]
[1747967566297,3.68161618,2716.2,2715.9,29.829]
[1747967566298,3.68215627,2715.8,2715.7,25.5197]
[1747967566462,0.55,2716.5,2715.7,25.5197]
[1747967566800,3.68161401,2716.2,2716.1,0.34054452]
[1747967566999,3.68154965,2716.3,2716.1,0.34054452]
[1747967567360,3.68148649,2716.3,2716.1,0.34054452]
[1747967567587,3.68141971,2716.4,2716.1,0.34054452]
[1747967567799,3.68080094,2716.8,2716.1,0.34054452]
[1747967567800,3.68161401,2716.2,2716.1,0.34054452]
[1747967568303,3.68161401,2716.2,2716.1,29.825]
[1747967568481,3.68153173,2716.3,2716.1,29.825]
[1747967568676,3.68140352,2716.4,2716.1,29.825]
[1747967568996,3.68127949,2716.5,2716.1,29.825]
[1747967569697,3.68188512,2716.0,2715.9,0.42514644]
[1747967569895,3.68119428,2716.6,2715.9,30.24814644]